bitfinex/quotes_BTCUSD_20210402
["timestamp","ask_amount","ask_price","bid_price","bid_amount"]
[1617370430444,0.59600342,59100.0,59065.0,0.0004]
[1617370430648,0.59600342,59100.0,58887.0,0.39656126]
[1617370431272,1.62100342,59100.0,59099.0,0.351761]
[1617370431466,1.62100342,59100.0,59087.0,0.004]
[1617370431467,0.10303724,59099.0,59087.0,0.004]
[1617370431656,3.91320248,59097.0,59068.0,0.239]
[1617370431853,0.35016524,59096.0,59080.0,0.002]
[1617370432052,0.0046,59095.0,59064.0,0.13451877]
[1617370432245,0.00763724,59095.0,59063.0,1.64295112]
[1617370432446,0.6,59094.0,59073.0,0.002]
[1617370432643,0.6,59094.0,59063.0,0.72995112]
[1617370432860,0.6,59094.0,59077.0,0.06767192]
[1617370432861,0.2504534,59091.0,59077.0,0.06767192]
[1617370433050,0.08803724,59090.0,59077.0,0.06767192]
[1617370433251,0.55458724,59090.0,59077.0,0.06767192]
[1617370433450,0.00303724,59088.0,59077.0,0.06767192]
[1617370433648,0.47958724,59088.0,59077.0,0.06767192]
[1617370433857,0.00568917,59095.0,59077.0,3.62267192]
[1617370434055,0.00568917,59095.0,59081.0,0.020021]
[1617370434256,0.00568917,59095.0,59087.0,0.06766712]
[1617370434650,0.51334917,59095.0,59087.0,0.06766712]
[1617370435055,0.04111179,59102.0,59087.0,0.06766712]
[1617370435056,0.04111179,59102.0,59088.0,0.00303724]
[1617370435251,0.25208472,59103.0,59088.0,0.00303724]
[1617370435452,0.25208472,59103.0,59090.0,0.00303724]
[1617370435653,0.25208472,59103.0,59091.0,0.020008]
[1617370435654,0.50759,59103.0,59091.0,0.020008]
[1617370435871,0.49759,59103.0,59091.0,0.020008]
[1617370436069,0.49759,59103.0,59100.0,0.16]
[1617370436675,0.48759,59103.0,59100.0,0.16]
[1617370437088,0.31671947,59122.0,59105.0,0.019991]
[1617370437289,0.42110901,59107.0,59106.0,3.56]
[1617370437483,0.31561444,59142.0,59106.0,4.879985]
[1617370437681,0.002,59135.0,59116.0,0.0002]
[1617370437873,0.002,59135.0,59116.0,0.36647]
[1617370438079,0.31561444,59142.0,59118.0,0.01996]
[1617370438272,0.564928,59139.0,59119.0,0.00303724]
[1617370438501,0.564928,59139.0,59120.0,0.01]
[1617370438704,0.564928,59139.0,59121.0,0.00303724]
[1617370438905,0.564928,59139.0,59122.0,0.0002]
[1617370438906,0.559928,59139.0,59122.0,0.0002]
[1617370439106,0.559928,59139.0,59123.0,0.01]
[1617370439510,0.559928,59139.0,59122.0,0.00323724]
[1617370439704,0.006,59135.0,59122.0,0.0002]
[1617370439903,0.50228,59135.0,59122.0,0.0002]
[1617370440108,0.50228,59135.0,59122.0,0.00323724]
[1617370440302,0.50228,59135.0,59124.0,0.019954]
[1617370440500,0.50228,59135.0,59123.0,0.01]
[1617370440699,0.48728,59135.0,59123.0,0.01]
[1617370441123,0.47728,59135.0,59123.0,0.01]
[1617370441321,0.47228,59135.0,59123.0,0.01]
[1617370441923,0.47208,59135.0,59127.0,0.161]
[1617370442129,0.47208,59135.0,59123.0,0.01]
[1617370442524,0.47208,59135.0,59124.0,0.01647133]
[1617370442732,0.47208,59135.0,59125.0,0.01]
[1617370442935,0.052648,59139.0,59130.0,3.56]
[1617370443132,0.042648,59139.0,59134.0,0.019942]
[1617370443332,0.042648,59139.0,59133.0,0.019942]
[1617370443753,0.042648,59139.0,59132.0,0.00303724]
[1617370443754,0.549928,59139.0,59132.0,0.00303724]
[1617370443952,0.549928,59139.0,59137.0,0.019939]
[1617370444152,0.549928,59139.0,59136.0,0.0641]
[1617370444153,0.549928,59139.0,59136.0,0.50227]
[1617370444351,0.549928,59139.0,59138.0,3.579937]
[1617370444547,0.549928,59139.0,59138.0,3.589937]
[1617370444777,0.549928,59139.0,59138.0,4.339937]
[1617370445375,0.1,59158.0,59139.0,3.56]
[1617370445575,0.102,59158.0,59141.0,0.019924]
[1617370445771,0.102,59158.0,59142.0,0.01323724]
[1617370445970,0.102,59158.0,59143.0,0.019923]
[1617370446170,0.60912,59158.0,59144.0,0.00303724]
[1617370446400,0.60412,59158.0,59146.0,0.14]
[1617370446595,0.60412,59158.0,59145.0,0.01]
[1617370446794,0.60412,59158.0,59145.0,0.005]
[1617370446998,0.006,59155.0,59140.0,0.007]
[1617370447198,0.65412,59158.0,59140.0,0.007]
[1617370447199,0.09,59154.0,59142.0,0.0002]
[1617370447401,0.09,59154.0,59143.0,0.019922]
[1617370447602,0.50712,59154.0,59146.0,0.01647133]
[1617370447998,0.388304,59153.0,59146.0,0.01647133]
[1617370448200,0.50712,59153.0,59147.0,0.007]
[1617370448396,0.50712,59153.0,59147.0,0.46703]
[1617370449000,0.50712,59153.0,59147.0,0.46003]
[1617370449214,0.50712,59153.0,59151.0,0.019918]
[1617370449405,0.50712,59153.0,59152.0,3.579915]
[1617370449605,0.50712,59153.0,59152.0,4.199915]
[1617370450803,0.50402,59153.0,59152.0,4.199915]
[1617370451009,0.50402,59153.0,59152.0,4.21638633]
[1617370451412,0.09,59174.0,59157.0,0.253464]
[1617370451630,0.092,59174.0,59158.0,0.02293624]
[1617370451828,0.002,59174.0,59158.0,0.48857189]
[1617370452027,0.002,59174.0,59160.0,0.00303724]
[1617370452223,0.002,59174.0,59161.0,0.259896]
[1617370452424,0.002,59174.0,59162.0,0.00303724]
[1617370452639,0.022,59189.0,59163.0,3.579894]
[1617370452839,0.024,59189.0,59164.0,1.07850694]
[1617370453025,0.024,59189.0,59169.0,0.0002]
[1617370453227,0.024,59189.0,59171.0,0.00303724]
[1617370453428,0.024,59189.0,59172.0,0.019877]
[1617370453628,0.024,59189.0,59173.0,0.00303724]
[1617370453825,0.024,59189.0,59175.0,0.00303724]
[1617370454023,0.014,59189.0,59175.0,0.00303724]
[1617370454249,0.014,59189.0,59174.0,0.04777]
[1617370454447,0.25988158,59197.0,59176.0,0.14]
[1617370454648,0.002,59197.0,59177.0,3.56]
[1617370454847,0.00756656,59188.0,59181.0,0.019865]
[1617370455047,0.00456656,59188.0,59181.0,0.594865]
[1617370455852,0.00456656,59188.0,59181.0,0.575]
[1617370456053,0.51134656,59188.0,59180.0,0.06681]
[1617370456256,0.006,59185.0,59173.0,0.01647133]
[1617370456452,0.388004,59184.0,59173.0,0.01647133]
[1617370456658,0.440004,59184.0,59173.0,0.01647133]
[1617370456883,0.896784,59184.0,59173.0,0.01647133]
[1617370457476,0.09,59183.0,59173.0,0.01647133]
[1617370457676,0.388304,59182.0,59173.0,0.01647133]
[1617370458083,0.388304,59182.0,59171.0,0.154]
[1617370458084,0.50678,59182.0,59171.0,0.154]
[1617370458678,0.50678,59182.0,59172.0,0.020184]
[1617370458882,0.50678,59182.0,59170.0,0.01647133]
[1617370459283,0.09,59181.0,59170.0,0.01647133]
[1617370459506,0.59678,59181.0,59170.0,0.01647133]
[1617370459923,0.388276,59180.0,59170.0,0.01647133]
[1617370460124,0.51431361,59180.0,59170.0,0.01647133]
[1617370460328,0.30725766,59178.0,59170.0,0.01647133]
[1617370460525,0.69553366,59177.0,59170.0,0.01647133]
[1617370460925,0.895056,59177.0,59167.0,0.01647133]
[1617370461123,0.895056,59177.0,59168.0,0.14]
[1617370461321,0.895056,59177.0,59167.0,0.01647133]
[1617370461522,0.50678,59177.0,59167.0,0.01647133]
[1617370461924,0.388278,59175.0,59167.0,0.01647133]
[1617370462351,0.50678,59175.0,59167.0,0.01647133]
[1617370462546,0.47678,59175.0,59167.0,0.01647133]
[1617370462946,0.388278,59174.0,59167.0,0.01647133]
[1617370463149,0.47678,59175.0,59167.0,0.01647133]
[1617370463347,0.253506,59176.0,59167.0,0.01647133]
[1617370463348,0.47678,59174.0,59167.0,0.01647133]
[1617370463546,0.865058,59174.0,59167.0,0.01647133]
[1617370463946,0.865058,59174.0,59165.0,0.01647133]
[1617370464143,0.915058,59174.0,59165.0,0.01647133]
[1617370464350,0.47678,59174.0,59165.0,0.01647133]
[1617370465758,0.388278,59173.0,59165.0,0.01647133]
[1617370465953,0.87259237,59173.0,59165.0,0.01647133]
[1617370466157,0.388278,59172.0,59165.0,0.01647133]
[1617370466353,0.86585194,59172.0,59165.0,0.01647133]
[1617370466553,0.86085194,59172.0,59165.0,0.01647133]
[1617370466753,0.85972495,59172.0,59165.0,0.01647133]
[1617370466951,0.47757394,59172.0,59165.0,0.01647133]
[1617370467154,0.72108594,59172.0,59165.0,0.01647133]
[1617370467381,0.72108594,59172.0,59158.0,0.01647133]
[1617370467580,0.72108594,59172.0,59159.0,0.00303724]
[1617370467581,0.46757394,59172.0,59159.0,0.00303724]
[1617370467782,0.46757394,59172.0,59160.0,0.246835]
[1617370468188,1.44757394,59172.0,59160.0,0.246835]
[1617370468403,0.161,59161.0,59158.0,0.01647133]
[1617370468599,4.50722374,59159.0,59158.0,0.01647133]
[1617370468797,6.11262374,59159.0,59158.0,0.01647133]
[1617370468992,6.65262374,59159.0,59158.0,1.33e-06]
[1617370469196,1.0,59158.0,59143.0,0.1218538]
[1617370469400,0.164,59144.0,59142.0,0.00198163]
[1617370469597,0.164,59144.0,59124.0,0.00024]
[1617370469598,4.251956,59143.0,59141.0,0.00198167]
[1617370469788,3.94828,59142.0,59141.0,0.00198167]
[1617370470006,2.36016524,59141.0,59140.0,0.00198167]
[1617370470205,1.95,59140.0,59122.0,0.10024917]
[1617370470401,0.006,59138.0,59121.0,0.168]
[1617370470612,0.253671,59130.0,59120.0,0.055]
[1617370471009,0.70124494,59130.0,59121.0,0.07902601]
[1617370471206,0.70124494,59130.0,59122.0,0.08392644]
[1617370471407,0.70124494,59130.0,59109.0,0.14185247]
[1617370471408,0.01057728,59129.0,59109.0,0.14185247]
[1617370471611,0.45815122,59129.0,59110.0,0.0002]
[1617370471808,0.0054,59127.0,59110.0,0.0002]
[1617370472006,0.00303724,59126.0,59110.0,0.0002]
[1617370472206,0.45061118,59126.0,59111.0,0.17]
[1617370472407,0.45061118,59126.0,59111.0,0.046926]
[1617370472630,0.45061118,59126.0,59110.0,1.047126]
[1617370473037,0.45061118,59126.0,59110.0,0.947126]
[1617370473236,0.88570118,59126.0,59110.0,0.947126]
[1617370473437,0.09,59125.0,59111.0,0.14]
[1617370473637,0.00303724,59124.0,59111.0,0.14]
[1617370473831,0.45061118,59124.0,59111.0,0.14]
[1617370474234,0.75789902,59124.0,59111.0,0.14]
[1617370474434,0.75789902,59124.0,59100.0,0.06113584]
[1617370474435,0.00763724,59122.0,59100.0,0.06113584]
[1617370474640,0.0054,59116.0,59100.0,0.06113584]
[1617370474896,0.00303724,59115.0,59100.0,0.06113584]
[1617370475092,0.156,59113.0,59100.0,0.06113584]
[1617370475291,0.00303724,59112.0,59100.0,0.06113584]
[1617370475489,0.0046,59111.0,59100.0,0.06113584]
[1617370475895,0.0046,59111.0,59100.0,0.01]
[1617370475896,0.44757394,59111.0,59100.0,0.01]
[1617370476295,0.42998877,59111.0,59101.0,0.185]
[1617370476490,0.42998877,59111.0,59101.0,0.147]
[1617370476692,0.42998877,59111.0,59100.0,0.01]
[1617370476892,0.00754246,59110.0,59100.0,0.01]
[1617370477492,0.09,59109.0,59100.0,0.01]
[1617370477689,0.51998877,59109.0,59100.0,0.01]
[1617370477911,0.42998877,59106.0,59100.0,0.01]
[1617370478109,0.41998877,59106.0,59100.0,0.005]
[1617370478507,0.09,59105.0,59100.0,0.005]
[1617370478708,0.50998877,59105.0,59100.0,0.005]
[1617370479713,0.50998877,59105.0,59092.0,0.49230547]
[1617370479911,0.41998877,59105.0,59093.0,0.165]
[1617370480111,0.41998877,59105.0,59092.0,0.49230547]
[1617370480310,0.50998877,59105.0,59092.0,0.49230547]
[1617370481716,0.55998877,59105.0,59092.0,0.49230547]
[1617370481912,0.09,59104.0,59093.0,0.145]
[1617370482116,0.50998877,59104.0,59093.0,0.145]
[1617370482312,0.50998877,59104.0,59092.0,0.49230547]
[1617370482512,0.51753219,59104.0,59092.0,0.49230547]
[1617370483330,0.51753219,59104.0,59092.0,0.168]
[1617370483526,0.51753219,59104.0,59091.0,0.06572701]
[1617370484328,0.49253219,59104.0,59091.0,0.06572701]
[1617370484533,0.52253219,59104.0,59091.0,0.06572701]
[1617370485328,0.45753219,59104.0,59091.0,0.06572701]
[1617370485537,0.48753219,59104.0,59091.0,0.06572701]
[1617370486758,0.48753219,59104.0,59091.0,0.31946901]
[1617370486952,0.48753219,59104.0,59092.0,0.345]
[1617370487152,0.48753219,59104.0,59092.0,0.445]
[1617370487551,0.48753219,59104.0,59093.0,0.38175678]
[1617370487755,0.48753219,59104.0,59094.0,0.1]
[1617370487958,0.00077178,59103.0,59095.0,0.185]
[1617370488158,0.42076055,59103.0,59095.0,0.185]
[1617370488384,0.42076055,59103.0,59094.0,0.253735]
[1617370488584,0.42076055,59103.0,59095.0,0.11643006]
[1617370489186,0.00303724,59112.0,59096.0,3.56]
[1617370489388,0.065,59113.0,59096.0,3.56]
[1617370489586,0.00303724,59118.0,59097.0,0.55]
[1617370490031,0.50746,59118.0,59099.0,0.00303724]
[1617370490232,0.50746,59118.0,59099.0,0.905]
[1617370490428,0.50746,59118.0,59099.0,0.00303724]
[1617370490625,0.0011,59100.0,59098.0,3.56]
[1617370490834,0.50746,59100.0,59099.0,3.55]
[1617370491030,0.50746,59100.0,59099.0,4.455]
[1617370491227,0.253715,59123.0,59100.0,3.55]
[1617370491426,0.0054,59121.0,59100.0,3.55]
[1617370491826,0.51283,59121.0,59100.0,3.55]
[1617370492029,0.50743,59121.0,59100.0,3.55]
[1617370492226,0.50743,59121.0,59101.0,0.445]
[1617370492427,0.50743,59121.0,59103.0,0.00303724]
[1617370492630,0.50743,59121.0,59106.0,0.00303724]
[1617370493028,0.50743,59121.0,59102.0,0.905]
[1617370493227,0.50743,59121.0,59107.0,0.19]
[1617370493425,0.50743,59121.0,59101.0,0.00303724]
[1617370493628,0.50243,59121.0,59101.0,0.10303724]
[1617370493827,0.50243,59121.0,59101.0,0.1]
[1617370494028,0.49243,59121.0,59102.0,0.21303724]
[1617370494630,0.44223,59121.0,59102.0,0.21303724]
[1617370495030,0.43723,59121.0,59102.0,0.21303724]
[1617370495233,0.43723,59121.0,59103.0,0.10620265]
[1617370495435,0.43723,59121.0,59104.0,0.00303724]
[1617370495830,0.43723,59121.0,59104.0,0.10303724]
[1617370496266,0.065,59129.0,59107.0,1.253676]
[1617370496470,0.065,59139.0,59108.0,0.3]
[1617370496671,0.065,59139.0,59109.0,1.2739572]
[1617370496879,0.065,59139.0,59110.0,0.7854697]
[1617370497071,0.065,59139.0,59111.0,2.07503724]
[1617370497278,0.065,59139.0,59118.0,0.00303724]
[1617370497279,0.50728,59139.0,59118.0,0.00303724]
[1617370497479,0.50728,59139.0,59128.0,0.338089]
[1617370497672,0.50728,59139.0,59127.0,0.16766]
[1617370497673,0.50728,59139.0,59130.0,0.06761775]
[1617370497865,0.50728,59139.0,59131.0,0.19]
[1617370498069,0.50728,59139.0,59131.0,0.26565202]
[1617370498270,0.50728,59139.0,59132.0,0.37565059]
[1617370498668,0.50728,59139.0,59133.0,0.07564993]
[1617370498877,0.50728,59139.0,59134.0,0.24]
[1617370499079,0.50728,59139.0,59134.0,0.49358]
[1617370499881,0.50228,59139.0,59134.0,0.49358]
[1617370500079,0.00071536,59138.0,59135.0,0.275]
[1617370500482,0.50299536,59138.0,59135.0,0.255]
[1617370500684,0.50299536,59138.0,59136.0,0.3]
[1617370500881,0.50299536,59138.0,59137.0,3.998583]
[1617370501279,0.04,59157.0,59138.0,3.55]
[1617370501511,0.0008,59154.0,59139.0,0.885]
[1617370501712,0.0008,59154.0,59139.0,4.435]
[1617370501911,0.0008,59154.0,59140.0,0.88803724]
[1617370502112,1.0,59153.0,59140.0,0.88803724]
[1617370502318,1.0,59153.0,59137.0,0.168]
[1617370502319,0.158,59150.0,59137.0,0.168]
[1617370502518,2.01617585,59144.0,59137.0,0.168]
[1617370502709,2.52332585,59144.0,59137.0,0.168]
[1617370503512,0.50715,59144.0,59137.0,0.168]
[1617370503714,0.57215,59144.0,59136.0,2.06989696]
[1617370503917,0.165,59142.0,59136.0,1.90989696]
[1617370504138,1.26,59141.0,59136.0,1.90989696]
[1617370504345,3.713,59137.0,59136.0,1.90989696]
[1617370504542,6.30208274,59137.0,59136.0,1.90989696]
[1617370504741,7.75825274,59137.0,59136.0,1.90989696]
[1617370504970,7.75325274,59137.0,59136.0,1.90989696]
[1617370505376,7.81825274,59137.0,59136.0,1.90989696]
[1617370505577,8.15825274,59137.0,59136.0,1.90989696]
[1617370505774,8.15825274,59137.0,59109.0,0.03]
[1617370505979,5.79840898,59136.0,59109.0,0.03]
[1617370506169,7.50055898,59136.0,59109.0,0.03]
[1617370506372,7.56555898,59136.0,59109.0,0.03]
[1617370506570,7.56055898,59136.0,59109.0,0.03]
[1617370506798,3.401,59110.0,59109.0,0.03]
[1617370506986,5.49929374,59110.0,59109.0,0.03]
[1617370507184,6.96354374,59110.0,59109.0,0.03]
[1617370507382,7.00354374,59110.0,59109.0,0.03]
[1617370507580,6.06854374,59110.0,59109.0,0.03]
[1617370507780,2.1826,59110.0,59109.0,0.03]
[1617370507982,1.4126,59110.0,59109.0,0.03]
[1617370508183,0.89545,59110.0,59109.0,0.03]
[1617370508379,0.95299202,59110.0,59109.0,0.03]
[1617370508584,6.07750202,59110.0,59109.0,0.03]
[1617370508783,6.60108576,59110.0,59109.0,0.03]
[1617370508980,3.1167992,59110.0,59109.0,0.03]
[1617370509388,1.72185546,59110.0,59109.0,0.03]
[1617370509591,4.02765246,59110.0,59109.0,0.03]
[1617370509986,5.9223768,59110.0,59109.0,0.03]
[1617370510192,6.1763768,59110.0,59109.0,0.03]
[1617370510588,7.4563768,59110.0,59109.0,0.03]
[1617370510784,6.2163768,59110.0,59109.0,0.03]
[1617370510988,6.1763768,59110.0,59109.0,0.03]
[1617370511387,5.1763768,59110.0,59109.0,0.03]
[1617370511585,5.1763768,59110.0,59109.0,0.02]
[1617370511791,5.0465962,59110.0,59109.0,0.02]
[1617370512006,6.0465962,59110.0,59109.0,0.02]
[1617370512608,4.8875962,59110.0,59109.0,0.015]
[1617370513010,5.8875962,59110.0,59109.0,0.015]
[1617370513207,6.0975962,59110.0,59109.0,0.015]
[1617370513408,2.7375962,59110.0,59109.0,0.015]
[1617370513607,4.5975962,59110.0,59109.0,0.015]
[1617370514208,3.8775962,59110.0,59109.0,0.015]
[1617370514406,2.5775962,59110.0,59109.0,0.015]
[1617370514631,5.8975962,59110.0,59109.0,0.015]
[1617370514829,2.5775962,59110.0,59109.0,0.015]
[1617370515427,3.5775962,59110.0,59109.0,0.015]
[1617370515635,7.0375962,59110.0,59109.0,0.015]
[1617370515833,7.1625962,59110.0,59109.0,0.015]
[1617370516232,7.4525962,59110.0,59109.0,0.015]
[1617370516429,8.40737026,59110.0,59109.0,0.015]
[1617370516631,5.08737026,59110.0,59109.0,0.015]
[1617370516830,4.88737026,59110.0,59109.0,0.015]
[1617370517039,4.54737026,59110.0,59109.0,0.015]
[1617370517268,4.70337026,59110.0,59109.0,0.015]
[1617370517468,8.19337026,59110.0,59109.0,0.015]
[1617370517672,5.04337026,59110.0,59109.0,0.015]
[1617370517868,5.03337026,59110.0,59109.0,0.015]
[1617370518068,4.79337026,59110.0,59109.0,0.015]
[1617370518469,6.83337026,59110.0,59109.0,0.015]
[1617370518669,4.79337026,59110.0,59109.0,0.015]
[1617370519267,4.83337026,59110.0,59109.0,0.015]
[1617370519467,6.13337026,59110.0,59109.0,0.015]
[1617370520311,6.06222026,59110.0,59109.0,0.015]
[1617370520510,8.37239026,59110.0,59109.0,0.015]
[1617370521322,8.67239026,59110.0,59109.0,0.015]
[1617370521525,8.91239026,59110.0,59109.0,0.015]
[1617370521718,9.40171705,59110.0,59109.0,0.015]
[1617370522316,9.80171705,59110.0,59109.0,0.015]
[1617370522733,9.80171705,59110.0,59099.0,0.0379]
[1617370522945,3.9383,59100.0,59099.0,0.0379]
[1617370523141,5.53924374,59100.0,59099.0,0.0379]
[1617370523341,6.72572053,59100.0,59099.0,0.0379]
[1617370523538,6.83072053,59100.0,59099.0,0.0379]
[1617370523740,6.83072053,59100.0,59099.0,0.0329]
[1617370523942,2.87864253,59100.0,59099.0,0.2309]
[1617370524143,2.62364253,59100.0,59099.0,0.2309]
[1617370524341,1.62364253,59100.0,59099.0,0.2309]
[1617370524539,1.53431574,59100.0,59099.0,0.2309]
[1617370524739,1.53431574,59100.0,59099.0,0.0329]
[1617370524936,1.85931574,59100.0,59099.0,0.0329]
[1617370525138,2.85931574,59100.0,59099.0,0.0329]
[1617370525344,1.85931574,59100.0,59099.0,0.0329]
[1617370525544,2.85931574,59100.0,59099.0,0.7599]
[1617370525741,2.85431574,59100.0,59099.0,0.7599]
[1617370526146,2.89431574,59100.0,59099.0,0.7599]
[1617370526343,1.90431574,59100.0,59099.0,0.7599]
[1617370526937,1.90431574,59100.0,59099.0,0.0329]
[1617370527137,2.90431574,59100.0,59099.0,0.0329]
[1617370527338,1.90431574,59100.0,59099.0,0.0329]
[1617370527543,3.84431574,59100.0,59099.0,0.0329]
[1617370527968,4.94431574,59100.0,59099.0,0.0329]
[1617370528170,1.81,59099.0,59067.0,0.192771]
[1617370528370,0.34516524,59097.0,59067.0,0.242771]
[1617370528567,0.76824374,59096.0,59068.0,0.777]
[1617370528769,0.1,59095.0,59068.0,0.727]
[1617370528963,1.23225898,59095.0,59068.0,1.597]
[1617370529168,0.258263,59093.0,59072.0,0.25385]
[1617370529370,0.3883,59092.0,59087.0,0.0198118]
[1617370529571,0.76324374,59092.0,59088.0,0.01981148]
[1617370529767,2.58324374,59090.0,59089.0,0.845]
[1617370529973,0.6133,59090.0,59089.0,0.845]
[1617370530170,1.17045,59090.0,59087.0,0.01981176]
[1617370530397,1.17045,59090.0,59088.0,0.845]
[1617370530398,3.42212174,59089.0,59088.0,0.845]
[1617370530594,3.99427174,59089.0,59084.0,0.0148123]
[1617370530790,2.9083,59085.0,59084.0,0.0148123]
[1617370530991,0.3883,59085.0,59084.0,0.845]
[1617370531189,0.4383,59085.0,59084.0,0.845]
[1617370531393,0.94545,59085.0,59084.0,0.845]
[1617370531591,0.62215,59085.0,59067.0,0.845]
[1617370531791,0.253907,59081.0,59068.0,1.005]
[1617370531988,0.761057,59081.0,59068.0,1.005]
[1617370532190,0.761057,59081.0,59069.0,1.19547916]
[1617370532390,0.751057,59081.0,59070.0,0.0754796]
[1617370532587,0.065,59080.0,59070.0,0.0754796]
[1617370533018,0.253925,59077.0,59070.0,0.0754796]
[1617370533218,0.3883,59076.0,59071.0,0.83]
[1617370533417,0.50715,59076.0,59072.0,0.844]
[1617370533616,0.50715,59076.0,59072.0,1.05448165]
[1617370533617,0.065,59075.0,59072.0,1.05448165]
[1617370534018,0.57215,59075.0,59073.0,0.07548154]
[1617370534613,0.57215,59075.0,59074.0,0.845]
[1617370535043,0.56215,59075.0,59074.0,1.1004976]
[1617370535653,0.50715,59075.0,59074.0,1.1004976]
[1617370536050,0.51469649,59075.0,59074.0,0.0704976]
[1617370536649,0.51469649,59075.0,59072.0,0.07040306]
[1617370536853,0.51469649,59075.0,59074.0,0.0164]
[1617370537252,0.51469649,59075.0,59074.0,2.2664]
[1617370537453,0.51469649,59075.0,59074.0,3.0964]
[1617370537651,0.51469649,59075.0,59074.0,2.95670396]
[1617370538050,0.51469649,59075.0,59074.0,2.95170396]
[1617370538291,0.51469649,59075.0,59074.0,4.25170396]
[1617370538494,0.51469649,59075.0,59074.0,2.95170396]
[1617370538887,0.51469649,59075.0,59074.0,4.62270396]
[1617370539090,0.51469649,59075.0,59074.0,0.70170396]
[1617370539294,0.51469649,59075.0,59074.0,0.07670396]
[1617370540096,0.51469649,59075.0,59074.0,0.91870396]
[1617370540294,0.57469649,59075.0,59074.0,1.74870396]
[1617370540492,0.57469649,59075.0,59074.0,2.00870396]
[1617370540697,0.57469649,59075.0,59074.0,2.14478786]
[1617370540899,0.51469649,59075.0,59074.0,2.14478786]
[1617370541300,0.51469649,59075.0,59074.0,3.68478786]
[1617370541500,0.51469649,59075.0,59074.0,2.14478786]
[1617370541903,0.5154906,59075.0,59074.0,2.14478786]
[1617370544318,0.5154906,59075.0,59074.0,0.47278786]
[1617370544728,0.5154906,59075.0,59074.0,0.06230396]
[1617370544926,0.5154906,59075.0,59074.0,0.58230396]
[1617370545324,0.5154906,59075.0,59074.0,0.58250396]
[1617370545727,0.5154906,59075.0,59074.0,1.07250396]
[1617370546157,0.5154906,59075.0,59074.0,2.02250396]
[1617370546355,0.5154906,59075.0,59074.0,2.15833234]
[1617370546951,0.5154906,59075.0,59074.0,0.84833234]
[1617370547352,0.5154906,59075.0,59074.0,1.32533234]
[1617370547551,0.5154906,59075.0,59074.0,1.02950396]
[1617370548153,0.5154906,59075.0,59074.0,3.77950396]
[1617370548551,0.5154906,59075.0,59074.0,3.91533067]
[1617370548782,0.5154906,59075.0,59074.0,4.51533067]
[1617370548985,0.5154906,59075.0,59074.0,3.54833067]
[1617370550094,0.5154906,59075.0,59074.0,4.18456167]
[1617370550285,0.5154906,59075.0,59074.0,4.98456167]
[1617370550498,0.5154906,59075.0,59074.0,5.22088615]
[1617370550688,0.5154906,59075.0,59074.0,4.42088615]
[1617370551089,0.5154906,59075.0,59074.0,5.22088615]
[1617370551301,0.5154906,59075.0,59074.0,4.42088615]
[1617370552108,0.5154906,59075.0,59074.0,5.22088615]
[1617370552513,0.43494374,59096.0,59075.0,3.55]
[1617370552716,0.06,59096.0,59081.0,0.1590654]
[1617370552914,0.06,59096.0,59083.0,0.00303724]
[1617370553121,0.06,59096.0,59090.0,0.338376]
[1617370553316,0.37494374,59109.0,59091.0,0.2925203]
[1617370553516,0.3883,59108.0,59091.0,0.367671]
[1617370553712,1.51324374,59108.0,59092.0,0.07494025]
[1617370553929,2.02078374,59108.0,59092.0,0.07494025]
[1617370554135,0.43,59107.0,59092.0,0.07494025]
[1617370554335,0.3883,59106.0,59095.0,0.253784]
[1617370554535,0.3883,59105.0,59095.0,0.253784]
[1617370554736,0.50754,59105.0,59096.0,0.07493439]
[1617370554934,0.50754,59105.0,59097.0,0.29131072]
[1617370555330,0.50754,59105.0,59098.0,0.07493338]
[1617370556328,0.205,59104.0,59098.0,0.07493338]
[1617370556555,0.50754,59104.0,59098.0,0.07493338]
[1617370557169,0.88362406,59110.0,59100.0,0.125026]
[1617370557368,0.9806,59136.0,59110.0,0.14]
[1617370557575,0.388305,59134.0,59111.0,0.17565337]
[1617370557769,0.388305,59134.0,59124.0,0.253659]
[1617370557966,0.895625,59134.0,59124.0,0.42147]
[1617370558361,0.895625,59134.0,59124.0,0.42444311]
[1617370558762,0.895625,59134.0,59126.0,0.00297296]
[1617370558958,0.895625,59134.0,59127.0,0.0029729]
[1617370559188,0.388305,59130.0,59125.0,0.00297287]
[1617370559388,0.50732,59130.0,59124.0,0.42444287]
[1617370560789,0.50732,59130.0,59125.0,0.0002]
[1617370560991,0.50732,59130.0,59125.0,0.00317285]
[1617370561189,0.50732,59130.0,59126.0,0.00297285]
[1617370561394,0.50732,59130.0,59125.0,0.0002]
[1617370561807,0.388305,59126.0,59125.0,0.0002]
[1617370562008,0.50732,59126.0,59112.0,0.026991]
[1617370562211,0.50732,59126.0,59112.0,0.386991]
[1617370562411,0.50732,59126.0,59113.0,0.07115887]
[1617370562609,0.50732,59126.0,59114.0,0.145]
[1617370563008,0.50732,59126.0,59115.0,0.07115893]
[1617370563211,0.50732,59126.0,59113.0,0.07115904]
[1617370563615,0.50732,59126.0,59116.0,0.32484282]
[1617370563814,0.50732,59126.0,59120.0,0.024995]
[1617370564010,0.00072768,59125.0,59120.0,0.024995]
[1617370564209,0.50804768,59125.0,59124.0,3.574989]
[1617370565534,0.50804768,59125.0,59124.0,4.029989]
[1617370565740,0.50804768,59125.0,59124.0,0.479989]
[1617370565936,0.50804768,59125.0,59124.0,0.455]
[1617370566135,0.50804768,59125.0,59116.0,0.253682]
[1617370566536,0.50804768,59125.0,59112.0,0.002]
[1617370568765,0.50804768,59125.0,59109.0,0.002]
[1617370568963,0.50804768,59125.0,59110.0,0.024995]
[1617370570592,0.50804768,59125.0,59111.0,0.135]
[1617370570791,0.50804768,59125.0,59112.0,0.025]
[1617370570991,0.0046,59123.0,59109.0,0.002]